[Event "Titled Tuesday Blitz January 31 Early 2023"]
[White "Cunha, Lucas Aguiar"]
[Black "Deac, Bogdan-Daniel"]
[WhiteFideId "2125404"]
[BlackFideId "1226380"]
[WhiteElo "2309"]
[BlackElo "2700"]
[Result "0-1"]
[Round "04"]
[TimeControl "180+2"]
[Date "2023.01.31"]
[WhiteClock "0:00:03"]
[BlackClock "0:00:04"]

1. e4 {[%clk 0:03:00]}  g6 {[%clk 0:02:59]} 2. d4 {[%clk 0:02:58]}  Bg7 {[%clk 0:02:59]} 3. Nc3 {[%clk 0:02:58]}  d6 {[%clk 0:03:00]} 4. Be3 {[%clk 0:02:57]}  Nc6 {[%clk 0:02:59]} 5. Qd2 {[%clk 0:02:49]}  e5 {[%clk 0:02:59]} 6. d5 {[%clk 0:02:48]}  Nce7 {[%clk 0:02:59]} 7. h3 {[%clk 0:02:31]}  f5 {[%clk 0:02:58]} 8. exf5 {[%clk 0:02:32]}  gxf5 {[%clk 0:02:57]} 9. Bg5 {[%clk 0:02:30]}  h6 {[%clk 0:02:52]} 10. Bh4 {[%clk 0:02:29]}  Nf6 {[%clk 0:02:51]} 11. f3 {[%clk 0:02:14]}  Ng6 {[%clk 0:02:47]} 12. Bf2 {[%clk 0:02:14]}  h5 {[%clk 0:02:45]} 13. Be3 {[%clk 0:02:11]}  h4 {[%clk 0:02:35]} 14. Bg5 {[%clk 0:02:10]}  O-O {[%clk 0:02:29]} 15. O-O-O {[%clk 0:02:08]}  Qe8 {[%clk 0:02:21]} 16. Bd3 {[%clk 0:02:02]}  Nh7 {[%clk 0:01:54]} 17. Be3 {[%clk 0:01:55]}  Bd7 {[%clk 0:01:53]} 18. Kb1 {[%clk 0:01:47]}  b5 {[%clk 0:01:52]} 19. Re1 {[%clk 0:01:40]}  b4 {[%clk 0:01:44]} 20. Nce2 {[%clk 0:01:36]}  Qf7 {[%clk 0:01:05]} 21. Bc4 {[%clk 0:01:33]}  a5 {[%clk 0:00:58]} 22. Nc1 {[%clk 0:01:31]}  a4 {[%clk 0:00:52]} 23. Qxb4 {[%clk 0:01:28]}  Rfb8 {[%clk 0:00:50]} 24. Qd2 {[%clk 0:01:25]}  Qf6 {[%clk 0:00:50]} 25. Nge2 {[%clk 0:01:16]}  Rb7 {[%clk 0:00:46]} 26. Rd1 {[%clk 0:01:03]}  Rab8 {[%clk 0:00:41]} 27. b3 {[%clk 0:01:03]}  Bb5 {[%clk 0:00:26]} 28. Bxb5 {[%clk 0:00:59]}  Rxb5 {[%clk 0:00:27]} 29. Nc3 {[%clk 0:00:54]}  axb3 {[%clk 0:00:27]} 30. Nxb5 {[%clk 0:00:51]}  bxa2+ {[%clk 0:00:27]} 31. Kxa2 {[%clk 0:00:50]}  Rxb5 {[%clk 0:00:27]} 32. c4 {[%clk 0:00:50]}  Rb8 {[%clk 0:00:20]} 33. Qa5 {[%clk 0:00:42]}  Qd8 {[%clk 0:00:18]} 34. Rd3 {[%clk 0:00:42]}  Ra8 {[%clk 0:00:17]} 35. Ba7 {[%clk 0:00:43]}  e4 {[%clk 0:00:16]} 36. Ra3 {[%clk 0:00:40]}  Qf6 {[%clk 0:00:15]} 37. Qb4 {[%clk 0:00:30]}  Rxa7 {[%clk 0:00:10]} 38. Rxa7 {[%clk 0:00:09]}  Qa1+ {[%clk 0:00:10]} 39. Kb3 {[%clk 0:00:10]}  Qxa7 {[%clk 0:00:10]} 40. fxe4 {[%clk 0:00:07]}  fxe4 {[%clk 0:00:10]} 41. Re1 {[%clk 0:00:05]}  Ng5 {[%clk 0:00:10]} 42. Na2 {[%clk 0:00:04]}  Nf4 {[%clk 0:00:09]} 43. Qb5 {[%clk 0:00:04]}  Qa8 {[%clk 0:00:08]} 44. Nb4 {[%clk 0:00:02]}  Kh7 {[%clk 0:00:06]} 45. Qc6 {[%clk 0:00:02]}  Qb8 {[%clk 0:00:06]} 46. Qb5 {[%clk 0:00:03]}  Qf8 {[%clk 0:00:05]} 47. Rf1 {[%clk 0:00:02]}  Qf6 {[%clk 0:00:05]} 48. Ka4 {[%clk 0:00:01]}  e3 {[%clk 0:00:05]} 49. Qd7 {[%clk 0:00:01]}  e2 {[%clk 0:00:05]} 50. Re1 {[%clk 0:00:02]}  Qg6 {[%clk 0:00:04]} 51. Qg4 {[%clk 0:00:02]}  Qf6 {[%clk 0:00:03]} 52. Qxh4+ {[%clk 0:00:02]}  Bh6 {[%clk 0:00:03]} 53. Qg4 {[%clk 0:00:03]}  Qf7 {[%clk 0:00:03]} 54. h4 {[%clk 0:00:02]}  Qe8+ {[%clk 0:00:03]} 55. Nc6 {[%clk 0:00:01]}  Ne4 {[%clk 0:00:03]} 56. Qf5+ {[%clk 0:00:01]}  Kh8 {[%clk 0:00:03]} 57. Rxe2 {[%clk 0:00:02]}  Nc5+ {[%clk 0:00:03]} 58. Kb5 {[%clk 0:00:02]}  Nxe2 {[%clk 0:00:03]} 59. Qf6+ {[%clk 0:00:02]}  Bg7 {[%clk 0:00:04]} 60. Qg5 {[%clk 0:00:03]}  Nc3+ {[%clk 0:00:04]} 61. Ka5 {[%clk 0:00:02]}  Qa8+ {[%clk 0:00:03]} 62. Kb4 {[%clk 0:00:03]}  Qa4# {[%clk 0:00:04]} 0-1


[Site "https://www.chess.com"]

[Event "Titled Tuesday Blitz January 31 Early 2023"]
[White "Bortnyk, Olexandr"]
[Black "Mirzoev, Azer"]
[WhiteFideId "14120828"]
[BlackFideId "13400304"]
[WhiteElo "2605"]
[BlackElo "2416"]
[Result "1-0"]
[Round "04"]
[TimeControl "180+2"]
[Date "2023.01.31"]
[WhiteClock "0:00:48"]
[BlackClock "0:00:01"]

1. e4 {[%clk 0:03:00]}  e5 {[%clk 0:02:59]} 2. Nf3 {[%clk 0:03:00]}  Nc6 {[%clk 0:02:58]} 3. Bb5 {[%clk 0:02:56]}  Nf6 {[%clk 0:02:58]} 4. Nc3 {[%clk 0:02:50]}  Bb4 {[%clk 0:02:53]} 5. Nd5 {[%clk 0:02:50]}  Nxd5 {[%clk 0:02:43]} 6. exd5 {[%clk 0:02:50]}  Nd4 {[%clk 0:02:42]} 7. Nxd4 {[%clk 0:02:47]}  exd4 {[%clk 0:02:42]} 8. O-O {[%clk 0:02:47]}  O-O {[%clk 0:02:41]} 9. c3 {[%clk 0:02:41]}  Bc5 {[%clk 0:02:38]} 10. Qf3 {[%clk 0:02:35]}  d6 {[%clk 0:02:29]} 11. d3 {[%clk 0:02:24]}  a6 {[%clk 0:02:23]} 12. Ba4 {[%clk 0:02:24]}  Bd7 {[%clk 0:02:17]} 13. Bxd7 {[%clk 0:02:21]}  Qxd7 {[%clk 0:02:17]} 14. c4 {[%clk 0:02:21]}  Rfe8 {[%clk 0:02:15]} 15. Bd2 {[%clk 0:02:20]}  b5 {[%clk 0:02:12]} 16. b3 {[%clk 0:02:20]}  bxc4 {[%clk 0:02:02]} 17. dxc4 {[%clk 0:02:21]}  h6 {[%clk 0:01:57]} 18. h3 {[%clk 0:02:21]}  Re7 {[%clk 0:01:48]} 19. Rfe1 {[%clk 0:02:19]}  Rae8 {[%clk 0:01:47]} 20. Rxe7 {[%clk 0:02:19]}  Rxe7 {[%clk 0:01:47]} 21. Re1 {[%clk 0:02:19]}  Rxe1+ {[%clk 0:01:46]} 22. Bxe1 {[%clk 0:02:20]}  Qe7 {[%clk 0:01:40]} 23. Kf1 {[%clk 0:02:17]}  Qe5 {[%clk 0:01:36]} 24. g3 {[%clk 0:02:02]}  Bb6 {[%clk 0:01:35]} 25. Bd2 {[%clk 0:02:00]}  a5 {[%clk 0:01:21]} 26. Qd3 {[%clk 0:01:49]}  Qh5 {[%clk 0:01:13]} 27. g4 {[%clk 0:01:49]}  Qe5 {[%clk 0:01:08]} 28. Kg2 {[%clk 0:01:48]}  Qe8 {[%clk 0:01:05]} 29. a4 {[%clk 0:01:42]}  Qe5 {[%clk 0:01:02]} 30. f4 {[%clk 0:01:39]}  Qe8 {[%clk 0:01:01]} 31. Kf3 {[%clk 0:01:40]}  Qb8 {[%clk 0:00:56]} 32. Be1 {[%clk 0:01:38]}  Qa8 {[%clk 0:00:52]} 33. Bf2 {[%clk 0:01:36]}  Qa7 {[%clk 0:00:51]} 34. h4 {[%clk 0:01:31]}  Bc5 {[%clk 0:00:49]} 35. h5 {[%clk 0:01:31]}  Qb6 {[%clk 0:00:47]} 36. g5 {[%clk 0:01:30]}  hxg5 {[%clk 0:00:46]} 37. fxg5 {[%clk 0:01:31]}  Qb8 {[%clk 0:00:46]} 38. Kf4 {[%clk 0:01:25]}  Qd8 {[%clk 0:00:39]} 39. Bxd4 {[%clk 0:01:11]}  Qe7 {[%clk 0:00:30]} 40. Qe3 {[%clk 0:01:02]}  Qd8 {[%clk 0:00:25]} 41. Bxc5 {[%clk 0:01:01]}  dxc5 {[%clk 0:00:25]} 42. Qxc5 {[%clk 0:01:01]}  Qb8 {[%clk 0:00:23]} 43. Qe3 {[%clk 0:00:59]}  Qf8 {[%clk 0:00:19]} 44. c5 {[%clk 0:00:58]}  Qd8 {[%clk 0:00:18]} 45. Qe5 {[%clk 0:00:55]}  Qb8 {[%clk 0:00:16]} 46. g6 {[%clk 0:00:49]}  Qb4+ {[%clk 0:00:15]} 47. Kf5 {[%clk 0:00:49]}  fxg6+ {[%clk 0:00:04]} 48. hxg6 {[%clk 0:00:50]}  Qb8 {[%clk 0:00:04]} 49. Qe6+ {[%clk 0:00:49]}  Kh8 {[%clk 0:00:03]} 50. Qe7 {[%clk 0:00:48]}  Qc8+ {[%clk 0:00:01]} 51. Ke5 {[%clk 0:00:48]} 1-0


[Site "https://www.chess.com"]

[Event "Titled Tuesday Blitz January 31 Early 2023"]
[White "Atakhan, Abtin"]
[Black "Kozak, Adam"]
[WhiteFideId "22502203"]
[BlackFideId "753246"]
[WhiteElo "2422"]
[BlackElo "2572"]
[Result "1/2-1/2"]
[Round "04"]
[TimeControl "180+2"]
[Date "2023.01.31"]
[WhiteClock "0:00:04"]
[BlackClock "0:00:05"]

1. d4 {[%clk 0:03:00]}  Nf6 {[%clk 0:02:56]} 2. c4 {[%clk 0:03:01]}  g6 {[%clk 0:02:54]} 3. Nc3 {[%clk 0:03:00]}  d5 {[%clk 0:02:53]} 4. Bf4 {[%clk 0:03:00]}  Bg7 {[%clk 0:02:52]} 5. e3 {[%clk 0:03:00]}  O-O {[%clk 0:02:52]} 6. cxd5 {[%clk 0:03:00]}  Nxd5 {[%clk 0:02:52]} 7. Nxd5 {[%clk 0:03:01]}  Qxd5 {[%clk 0:02:52]} 8. Bxc7 {[%clk 0:03:02]}  Nc6 {[%clk 0:02:53]} 9. Nf3 {[%clk 0:02:58]}  Bg4 {[%clk 0:02:35]} 10. Be2 {[%clk 0:02:53]}  Rac8 {[%clk 0:02:29]} 11. Bg3 {[%clk 0:02:49]}  Rfd8 {[%clk 0:02:28]} 12. O-O {[%clk 0:02:47]}  a6 {[%clk 0:02:27]} 13. h3 {[%clk 0:02:24]}  Bf5 {[%clk 0:02:25]} 14. Qb3 {[%clk 0:02:08]}  Qxb3 {[%clk 0:02:17]} 15. axb3 {[%clk 0:02:08]}  Bc2 {[%clk 0:02:18]} 16. Bc4 {[%clk 0:02:02]}  b5 {[%clk 0:02:10]} 17. Rfc1 {[%clk 0:01:44]}  Nb4 {[%clk 0:02:09]} 18. Be2 {[%clk 0:01:07]}  Bxb3 {[%clk 0:02:05]} 19. Nd2 {[%clk 0:01:00]}  Bc2 {[%clk 0:02:03]} 20. f4 {[%clk 0:00:38]}  Bf6 {[%clk 0:01:48]} 21. Be1 {[%clk 0:00:36]}  Bd3 {[%clk 0:01:22]} 22. Kf1 {[%clk 0:00:34]}  Bxe2+ {[%clk 0:01:10]} 23. Kxe2 {[%clk 0:00:34]}  Nc2 {[%clk 0:01:11]} 24. Rab1 {[%clk 0:00:31]}  e6 {[%clk 0:00:51]} 25. Ne4 {[%clk 0:00:29]}  Be7 {[%clk 0:00:51]} 26. Ba5 {[%clk 0:00:27]}  Re8 {[%clk 0:00:45]} 27. Kd3 {[%clk 0:00:19]}  f5 {[%clk 0:00:43]} 28. Nc5 {[%clk 0:00:15]}  Nxe3 {[%clk 0:00:19]} 29. Kxe3 {[%clk 0:00:15]}  Rc6 {[%clk 0:00:19]} 30. Nd3 {[%clk 0:00:13]}  Rd6 {[%clk 0:00:20]} 31. Bb4 {[%clk 0:00:13]}  Rd5 {[%clk 0:00:20]} 32. Rc7 {[%clk 0:00:12]}  Bf6 {[%clk 0:00:19]} 33. Ne5 {[%clk 0:00:11]}  Red8 {[%clk 0:00:20]} 34. Bc5 {[%clk 0:00:10]}  g5 {[%clk 0:00:19]} 35. g3 {[%clk 0:00:10]}  a5 {[%clk 0:00:17]} 36. Ra1 {[%clk 0:00:09]}  a4 {[%clk 0:00:18]} 37. Ra3 {[%clk 0:00:08]}  h6 {[%clk 0:00:16]} 38. b3 {[%clk 0:00:08]}  Ra8 {[%clk 0:00:15]} 39. bxa4 {[%clk 0:00:07]}  bxa4 {[%clk 0:00:16]} 40. Nd7 {[%clk 0:00:05]}  Bd8 {[%clk 0:00:14]} 41. Rb7 {[%clk 0:00:05]}  h5 {[%clk 0:00:10]} 42. Nb6 {[%clk 0:00:04]}  Bxb6 {[%clk 0:00:09]} 43. Rxb6 {[%clk 0:00:05]}  gxf4+ {[%clk 0:00:08]} 44. gxf4 {[%clk 0:00:04]}  Kf7 {[%clk 0:00:09]} 45. Rb7+ {[%clk 0:00:04]}  Kf6 {[%clk 0:00:09]} 46. Be7+ {[%clk 0:00:03]}  Kf7 {[%clk 0:00:09]} 47. Bc5+ {[%clk 0:00:03]}  Kf6 {[%clk 0:00:10]} 48. Ra7 {[%clk 0:00:01]}  Rg8 {[%clk 0:00:07]} 49. Kf2 {[%clk 0:00:01]}  Rb8 {[%clk 0:00:04]} 50. R7xa4 {[%clk 0:00:02]}  Rb2+ {[%clk 0:00:04]} 51. Ke3 {[%clk 0:00:03]}  Rh2 {[%clk 0:00:05]} 52. Kd3 {[%clk 0:00:03]}  Rxh3+ {[%clk 0:00:05]} 53. Kc4 {[%clk 0:00:04]}  Rh1 {[%clk 0:00:06]} 54. Ra7 {[%clk 0:00:04]}  Rc1+ {[%clk 0:00:05]} 55. Rc3 {[%clk 0:00:04]}  Rg1 {[%clk 0:00:04]} 56. Rh3 {[%clk 0:00:05]}  Kg6 {[%clk 0:00:02]} 57. Bf8 {[%clk 0:00:05]}  Rg4 {[%clk 0:00:01]} 58. Rg7+ {[%clk 0:00:05]}  Kf6 {[%clk 0:00:02]} 59. Rh7 {[%clk 0:00:04]}  Kg6 {[%clk 0:00:02]} 60. R3xh5 {[%clk 0:00:03]}  Rxf4 {[%clk 0:00:03]} 61. Be7 {[%clk 0:00:02]}  Rfxd4+ {[%clk 0:00:03]} 62. Kc3 {[%clk 0:00:02]}  f4 {[%clk 0:00:03]} 63. R5h6+ {[%clk 0:00:02]}  Kf5 {[%clk 0:00:04]} 64. Rf7+ {[%clk 0:00:02]}  Ke4 {[%clk 0:00:04]} 65. Rxe6+ {[%clk 0:00:03]}  Kf3 {[%clk 0:00:04]} 66. Re1 {[%clk 0:00:02]}  Rd3+ {[%clk 0:00:04]} 67. Kc2 {[%clk 0:00:02]}  R3d4 {[%clk 0:00:04]} 68. Bh4 {[%clk 0:00:02]}  Rc4+ {[%clk 0:00:04]} 69. Kb3 {[%clk 0:00:03]}  Rc6 {[%clk 0:00:04]} 70. Rf6 {[%clk 0:00:03]}  Rb5+ {[%clk 0:00:04]} 71. Ka4 {[%clk 0:00:03]}  Rcc5 {[%clk 0:00:03]} 72. Rf1+ {[%clk 0:00:03]}  Kg2 {[%clk 0:00:04]} 73. R6xf4 {[%clk 0:00:03]}  Ra5+ {[%clk 0:00:04]} 74. Kb4 {[%clk 0:00:03]}  Rab5+ {[%clk 0:00:05]} 75. Ka4 {[%clk 0:00:03]}  Ra5+ {[%clk 0:00:05]} 76. Kb3 {[%clk 0:00:04]}  Rab5+ {[%clk 0:00:05]} 77. Ka4 {[%clk 0:00:04]} 1/2-1/2


[Site "https://www.chess.com"]

[Event "Titled Tuesday Blitz January 31 Early 2023"]
[White "Han, Yichen"]
[Black "Terry, Renato"]
[WhiteFideId "1054430"]
[BlackFideId "3803457"]
[WhiteElo "2413"]
[BlackElo "2520"]
[Result "0-1"]
[Round "04"]
[TimeControl "180+2"]
[Date "2023.01.31"]
[WhiteClock "0:00:35"]
[BlackClock "0:01:58"]

1. e4 {[%clk 0:03:00]}  e6 {[%clk 0:03:00]} 2. d4 {[%clk 0:02:59]}  d5 {[%clk 0:03:00]} 3. Nc3 {[%clk 0:03:00]}  Nf6 {[%clk 0:03:00]} 4. Bg5 {[%clk 0:02:59]}  Bb4 {[%clk 0:03:00]} 5. e5 {[%clk 0:03:00]}  h6 {[%clk 0:03:00]} 6. Bc1 {[%clk 0:03:00]}  Ne4 {[%clk 0:03:00]} 7. Qg4 {[%clk 0:02:57]}  g6 {[%clk 0:03:00]} 8. Bd3 {[%clk 0:02:47]}  Nxc3 {[%clk 0:02:58]} 9. Bd2 {[%clk 0:02:46]}  Nxa2 {[%clk 0:02:56]} 10. c3 {[%clk 0:02:39]}  Be7 {[%clk 0:02:56]} 11. Rxa2 {[%clk 0:02:34]}  c5 {[%clk 0:02:57]} 12. h4 {[%clk 0:02:25]}  Nc6 {[%clk 0:02:57]} 13. Nf3 {[%clk 0:02:21]}  cxd4 {[%clk 0:02:56]} 14. cxd4 {[%clk 0:02:14]}  Nb4 {[%clk 0:02:56]} 15. Bxb4 {[%clk 0:02:11]}  Bxb4+ {[%clk 0:02:56]} 16. Ke2 {[%clk 0:02:12]}  Be7 {[%clk 0:02:47]} 17. Raa1 {[%clk 0:02:02]}  Bd7 {[%clk 0:02:33]} 18. Bxg6 {[%clk 0:01:50]}  Rg8 {[%clk 0:02:29]} 19. h5 {[%clk 0:01:23]}  Qb6 {[%clk 0:02:16]} 20. Bxf7+ {[%clk 0:01:14]}  Kxf7 {[%clk 0:02:16]} 21. Qf4+ {[%clk 0:01:14]}  Kg7 {[%clk 0:02:16]} 22. Rh3 {[%clk 0:00:56]}  Qxb2+ {[%clk 0:02:07]} 23. Ke3 {[%clk 0:00:56]}  Qc3+ {[%clk 0:02:04]} 24. Ke2 {[%clk 0:00:54]}  Bb5+ {[%clk 0:02:04]} 25. Kd1 {[%clk 0:00:49]}  Qxa1+ {[%clk 0:02:04]} 26. Kd2 {[%clk 0:00:41]}  Qb2+ {[%clk 0:02:00]} 27. Kd1 {[%clk 0:00:39]}  Qe2+ {[%clk 0:01:56]} 28. Kc1 {[%clk 0:00:38]}  Ba3+ {[%clk 0:01:57]} 29. Kb1 {[%clk 0:00:35]}  Qb2# {[%clk 0:01:58]} 0-1


[Site "https://www.chess.com"]

[Event "Titled Tuesday Blitz January 31 Early 2023"]
[White "Belozerov, Andrei"]
[Black "Lenderman, Aleksandr"]
[WhiteFideId "4120213"]
[BlackFideId "2021285"]
[WhiteElo "2461"]
[BlackElo "2572"]
[Result "0-1"]
[Round "04"]
[TimeControl "180+2"]
[Date "2023.01.31"]
[WhiteClock "0:00:08"]
[BlackClock "0:01:21"]

1. e4 {[%clk 0:03:00]}  c6 {[%clk 0:02:54]} 2. d4 {[%clk 0:02:59]}  d5 {[%clk 0:02:54]} 3. exd5 {[%clk 0:02:59]}  cxd5 {[%clk 0:02:54]} 4. Bd3 {[%clk 0:02:59]}  Nc6 {[%clk 0:02:51]} 5. c3 {[%clk 0:02:59]}  Qc7 {[%clk 0:02:51]} 6. Ne2 {[%clk 0:02:55]}  Bg4 {[%clk 0:02:50]} 7. O-O {[%clk 0:02:53]}  e6 {[%clk 0:02:50]} 8. Qe1 {[%clk 0:02:52]}  Bd6 {[%clk 0:02:49]} 9. Ng3 {[%clk 0:02:49]}  Nf6 {[%clk 0:02:43]} 10. f3 {[%clk 0:02:46]}  Bh5 {[%clk 0:02:43]} 11. f4 {[%clk 0:02:13]}  O-O-O {[%clk 0:02:35]} 12. Nxh5 {[%clk 0:02:03]}  Nxh5 {[%clk 0:02:34]} 13. g3 {[%clk 0:01:57]}  g6 {[%clk 0:02:31]} 14. Nd2 {[%clk 0:01:56]}  Rhe8 {[%clk 0:02:30]} 15. a4 {[%clk 0:01:49]}  f5 {[%clk 0:02:29]} 16. a5 {[%clk 0:01:49]}  Nf6 {[%clk 0:02:20]} 17. a6 {[%clk 0:01:49]}  b6 {[%clk 0:02:19]} 18. Nf3 {[%clk 0:01:47]}  Ne4 {[%clk 0:02:18]} 19. Ne5 {[%clk 0:01:43]}  Rg8 {[%clk 0:02:15]} 20. Bb5 {[%clk 0:01:40]}  Nxe5 {[%clk 0:02:15]} 21. fxe5 {[%clk 0:01:38]}  Bxe5 {[%clk 0:02:15]} 22. Be3 {[%clk 0:01:22]}  Bd6 {[%clk 0:02:13]} 23. c4 {[%clk 0:01:22]}  dxc4 {[%clk 0:02:12]} 24. Rc1 {[%clk 0:01:21]}  Kb8 {[%clk 0:02:12]} 25. Rxc4 {[%clk 0:01:21]}  Qe7 {[%clk 0:02:12]} 26. Bc6 {[%clk 0:01:14]}  Rc8 {[%clk 0:02:13]} 27. Qe2 {[%clk 0:01:13]}  Rc7 {[%clk 0:02:04]} 28. Rfc1 {[%clk 0:01:07]}  Rgc8 {[%clk 0:02:03]} 29. Kg2 {[%clk 0:00:59]}  Nf6 {[%clk 0:01:59]} 30. Bf3 {[%clk 0:00:55]}  Nd5 {[%clk 0:01:56]} 31. Bd2 {[%clk 0:00:50]}  Rxc4 {[%clk 0:01:54]} 32. Rxc4 {[%clk 0:00:49]}  Qd7 {[%clk 0:01:50]} 33. b3 {[%clk 0:00:41]}  b5 {[%clk 0:01:38]} 34. Rxc8+ {[%clk 0:00:38]}  Kxc8 {[%clk 0:01:39]} 35. Ba5 {[%clk 0:00:34]}  Bc7 {[%clk 0:01:38]} 36. Bxc7 {[%clk 0:00:26]}  Kxc7 {[%clk 0:01:38]} 37. Qe5+ {[%clk 0:00:23]}  Kb6 {[%clk 0:01:37]} 38. Qb8+ {[%clk 0:00:20]}  Kxa6 {[%clk 0:01:38]} 39. Be2 {[%clk 0:00:19]}  Ka5 {[%clk 0:01:37]} 40. h4 {[%clk 0:00:15]}  Kb4 {[%clk 0:01:36]} 41. h5 {[%clk 0:00:14]}  Nc3 {[%clk 0:01:34]} 42. Bd3 {[%clk 0:00:13]}  Qxd4 {[%clk 0:01:32]} 43. Qf8+ {[%clk 0:00:13]}  Kxb3 {[%clk 0:01:32]} 44. Bf1 {[%clk 0:00:12]}  Ne4 {[%clk 0:01:30]} 45. Kh3 {[%clk 0:00:09]}  Qf2 {[%clk 0:01:28]} 46. Qb8 {[%clk 0:00:08]}  Qxf1+ {[%clk 0:01:26]} 47. Kh2 {[%clk 0:00:08]}  Qf2+ {[%clk 0:01:20]} 48. Kh3 {[%clk 0:00:08]}  Ng5+ {[%clk 0:01:19]} 49. Kh4 {[%clk 0:00:07]}  Nf3+ {[%clk 0:01:20]} 50. Kh3 {[%clk 0:00:08]}  Qh2# {[%clk 0:01:21]} 0-1


[Site "https://www.chess.com"]

[Event "Titled Tuesday Blitz January 31 Early 2023"]
[White "Bruzon Batista, Lazaro"]
[Black "Arabidze, Meri"]
[WhiteFideId "3503739"]
[BlackFideId "13604040"]
[WhiteElo "2611"]
[BlackElo "2441"]
[Result "1/2-1/2"]
[Round "04"]
[TimeControl "180+2"]
[Date "2023.01.31"]
[WhiteClock "0:00:36"]
[BlackClock "0:00:29"]

1. e4 {[%clk 0:03:00]}  c5 {[%clk 0:02:59]} 2. Nf3 {[%clk 0:02:59]}  e6 {[%clk 0:02:59]} 3. d4 {[%clk 0:02:59]}  cxd4 {[%clk 0:03:00]} 4. Nxd4 {[%clk 0:02:59]}  Nc6 {[%clk 0:03:00]} 5. Nc3 {[%clk 0:02:59]}  a6 {[%clk 0:03:01]} 6. Qd3 {[%clk 0:02:50]}  Qc7 {[%clk 0:02:55]} 7. Nxc6 {[%clk 0:02:49]}  bxc6 {[%clk 0:02:50]} 8. Qg3 {[%clk 0:02:47]}  Qxg3 {[%clk 0:02:49]} 9. hxg3 {[%clk 0:02:46]}  Nf6 {[%clk 0:02:49]} 10. Bd3 {[%clk 0:02:45]}  e5 {[%clk 0:02:45]} 11. f3 {[%clk 0:02:44]}  d6 {[%clk 0:02:36]} 12. g4 {[%clk 0:02:42]}  Be6 {[%clk 0:02:33]} 13. g5 {[%clk 0:02:36]}  Nd7 {[%clk 0:02:33]} 14. Na4 {[%clk 0:02:35]}  f6 {[%clk 0:02:29]} 15. gxf6 {[%clk 0:02:33]}  Nxf6 {[%clk 0:02:27]} 16. Be3 {[%clk 0:02:31]}  Nd7 {[%clk 0:02:18]} 17. b3 {[%clk 0:02:26]}  Be7 {[%clk 0:02:17]} 18. O-O-O {[%clk 0:02:22]}  O-O {[%clk 0:02:16]} 19. Kb1 {[%clk 0:02:21]}  h6 {[%clk 0:02:13]} 20. Nb2 {[%clk 0:02:20]}  d5 {[%clk 0:02:09]} 21. c3 {[%clk 0:02:14]}  Bc5 {[%clk 0:02:04]} 22. Rhe1 {[%clk 0:02:07]}  Bxe3 {[%clk 0:02:03]} 23. Rxe3 {[%clk 0:02:06]}  d4 {[%clk 0:02:02]} 24. Ree1 {[%clk 0:02:02]}  c5 {[%clk 0:02:02]} 25. Bc4 {[%clk 0:02:01]}  Kf7 {[%clk 0:01:58]} 26. cxd4 {[%clk 0:01:59]}  cxd4 {[%clk 0:01:53]} 27. Rc1 {[%clk 0:01:58]}  Rfc8 {[%clk 0:01:52]} 28. Rc2 {[%clk 0:01:55]}  Bxc4 {[%clk 0:01:47]} 29. Nxc4 {[%clk 0:01:55]}  Ke6 {[%clk 0:01:48]} 30. Rec1 {[%clk 0:01:55]}  Rc5 {[%clk 0:01:43]} 31. Nb2 {[%clk 0:01:50]}  Rac8 {[%clk 0:01:41]} 32. Nd3 {[%clk 0:01:48]}  Rxc2 {[%clk 0:01:38]} 33. Rxc2 {[%clk 0:01:48]}  Rxc2 {[%clk 0:01:39]} 34. Kxc2 {[%clk 0:01:49]}  g5 {[%clk 0:01:36]} 35. b4 {[%clk 0:01:48]}  Kd6 {[%clk 0:01:32]} 36. Kb3 {[%clk 0:01:48]}  h5 {[%clk 0:01:25]} 37. Ka4 {[%clk 0:01:39]}  Kc6 {[%clk 0:01:13]} 38. Ka5 {[%clk 0:01:37]}  Kb7 {[%clk 0:01:13]} 39. b5 {[%clk 0:01:38]}  axb5 {[%clk 0:01:11]} 40. Kxb5 {[%clk 0:01:37]}  g4 {[%clk 0:01:08]} 41. fxg4 {[%clk 0:01:32]}  hxg4 {[%clk 0:01:08]} 42. a4 {[%clk 0:01:32]}  g3 {[%clk 0:01:05]} 43. a5 {[%clk 0:01:27]}  Nf6 {[%clk 0:01:04]} 44. Nc5+ {[%clk 0:01:20]}  Ka7 {[%clk 0:01:05]} 45. a6 {[%clk 0:01:06]}  d3 {[%clk 0:01:01]} 46. Nxd3 {[%clk 0:01:05]}  Nxe4 {[%clk 0:01:02]} 47. Nxe5 {[%clk 0:01:04]}  Nd6+ {[%clk 0:00:55]} 48. Kc6 {[%clk 0:01:02]}  Nf5 {[%clk 0:00:54]} 49. Kb5 {[%clk 0:01:00]}  Nd6+ {[%clk 0:00:48]} 50. Ka5 {[%clk 0:00:56]}  Nf5 {[%clk 0:00:45]} 51. Nc6+ {[%clk 0:00:54]}  Ka8 {[%clk 0:00:45]} 52. Nb4 {[%clk 0:00:48]}  Ne3 {[%clk 0:00:42]} 53. Kb6 {[%clk 0:00:48]}  Nc4+ {[%clk 0:00:34]} 54. Kc5 {[%clk 0:00:47]}  Ne3 {[%clk 0:00:33]} 55. Kb6 {[%clk 0:00:47]}  Nc4+ {[%clk 0:00:32]} 56. Kb5 {[%clk 0:00:46]}  Ne3 {[%clk 0:00:29]} 57. Kb6 {[%clk 0:00:36]} 1/2-1/2


[Site "https://www.chess.com"]

[Event "Titled Tuesday Blitz January 31 Early 2023"]
[White "Korchmar, Vasiliy"]
[Black "Timofeev, Artyom"]
[WhiteFideId "24131750"]
[BlackFideId "4140419"]
[WhiteElo "2438"]
[BlackElo "2567"]
[Result "0-1"]
[Round "04"]
[TimeControl "180+2"]
[Date "2023.01.31"]
[WhiteClock "0:00:01"]
[BlackClock "0:00:35"]

1. e4 {[%clk 0:02:54]}  c5 {[%clk 0:02:59]} 2. Nf3 {[%clk 0:02:52]}  Nc6 {[%clk 0:02:58]} 3. d4 {[%clk 0:02:51]}  cxd4 {[%clk 0:02:58]} 4. Nxd4 {[%clk 0:02:52]}  e5 {[%clk 0:02:59]} 5. Nb5 {[%clk 0:02:48]}  a6 {[%clk 0:02:59]} 6. Nd6+ {[%clk 0:02:47]}  Bxd6 {[%clk 0:02:58]} 7. Qxd6 {[%clk 0:02:47]}  Qe7 {[%clk 0:02:59]} 8. Qd1 {[%clk 0:02:40]}  Nf6 {[%clk 0:02:57]} 9. Nc3 {[%clk 0:02:38]}  d6 {[%clk 0:02:57]} 10. Bc4 {[%clk 0:02:29]}  h6 {[%clk 0:02:55]} 11. O-O {[%clk 0:02:29]}  O-O {[%clk 0:02:54]} 12. Be3 {[%clk 0:02:26]}  Be6 {[%clk 0:02:46]} 13. Bb3 {[%clk 0:02:26]}  Rac8 {[%clk 0:02:45]} 14. f3 {[%clk 0:02:17]}  Na5 {[%clk 0:02:42]} 15. Nd5 {[%clk 0:02:00]}  Nxd5 {[%clk 0:02:34]} 16. exd5 {[%clk 0:01:42]}  Bf5 {[%clk 0:02:28]} 17. c3 {[%clk 0:01:41]}  b5 {[%clk 0:02:18]} 18. a4 {[%clk 0:01:28]}  Nc4 {[%clk 0:02:15]} 19. Bxc4 {[%clk 0:01:14]}  bxc4 {[%clk 0:02:15]} 20. a5 {[%clk 0:01:10]}  Qb7 {[%clk 0:02:09]} 21. Bb6 {[%clk 0:01:06]}  Bd3 {[%clk 0:02:08]} 22. Rf2 {[%clk 0:00:53]}  Qxd5 {[%clk 0:02:08]} 23. Qa4 {[%clk 0:00:42]}  Bf5 {[%clk 0:01:56]} 24. Qb4 {[%clk 0:00:37]}  Rfe8 {[%clk 0:01:49]} 25. Re1 {[%clk 0:00:36]}  Bd3 {[%clk 0:01:46]} 26. Kh1 {[%clk 0:00:30]}  f5 {[%clk 0:01:44]} 27. Kg1 {[%clk 0:00:29]}  Kh7 {[%clk 0:01:43]} 28. Kh1 {[%clk 0:00:29]}  Re7 {[%clk 0:01:37]} 29. Kg1 {[%clk 0:00:28]}  Rce8 {[%clk 0:01:36]} 30. Rd1 {[%clk 0:00:22]}  e4 {[%clk 0:01:27]} 31. fxe4 {[%clk 0:00:22]}  Rxe4 {[%clk 0:01:27]} 32. Rff1 {[%clk 0:00:09]}  Rg4 {[%clk 0:01:17]} 33. Rf2 {[%clk 0:00:06]}  f4 {[%clk 0:01:11]} 34. h3 {[%clk 0:00:07]}  Rg6 {[%clk 0:01:09]} 35. Qa4 {[%clk 0:00:07]}  Re5 {[%clk 0:01:05]} 36. Qd7 {[%clk 0:00:07]}  Reg5 {[%clk 0:01:04]} 37. Rdd2 {[%clk 0:00:05]}  f3 {[%clk 0:00:58]} 38. Bd4 {[%clk 0:00:03]}  Qe4 {[%clk 0:00:52]} 39. Kh2 {[%clk 0:00:01]}  Qf4+ {[%clk 0:00:49]} 40. Kg1 {[%clk 0:00:01]}  Qg3 {[%clk 0:00:39]} 41. Qe7 {[%clk 0:00:01]}  fxg2 {[%clk 0:00:35]} 0-1


[Site "https://www.chess.com"]